bitfinex-derivatives/quotes_SOLF0:USTF0_20250823
["timestamp","ask_amount","ask_price","bid_price","bid_amount"]
[1755979684715,5.03212535,203.84,203.83,6.91625587]
[1755979686424,5.03212535,203.84,203.83,4.34625587]
[1755979692034,4.9065,203.87,203.83,4.34625587]
[1755979692326,5.03212535,203.85,203.84,4.34625587]
[1755979692824,5.03212535,203.85,203.84,6.91625587]
[1755979693934,5.03212535,203.85,203.84,2.57]
[1755979694130,5.03212535,203.85,203.84,6.92766326]
[1755979694527,5.03212535,203.85,203.84,4.35766326]
[1755979694737,5.03212535,203.85,203.84,6.92766326]
[1755979695326,5.03212535,203.85,203.84,4.35766326]
[1755979700033,5.03212535,203.85,203.84,6.92766326]
[1755979703833,5.03212535,203.85,203.84,2.57]
[1755979704030,5.03212535,203.85,203.84,6.92739708]
[1755979704437,5.03212535,203.85,203.84,6.92742717]
[1755979706035,5.03212535,203.85,203.84,4.35742717]
[1755979707638,118.56,203.85,203.84,4.35742717]
[1755979707940,123.59212535,203.85,203.84,4.35742717]
[1755979713844,123.59212535,203.85,203.84,4.35715289]
[1755979715343,123.59212535,203.85,203.84,7.01715289]
[1755979715644,123.59212535,203.85,203.84,4.35715289]
[1755979715835,5.03212535,203.85,203.84,7.01715289]
[1755979716037,123.55212535,203.85,203.84,4.35715289]
[1755979723544,123.55212535,203.85,203.84,4.36535575]
[1755979733152,123.55212535,203.85,203.82,2.66]
[1755979733357,123.55212535,203.85,203.83,4.36729071]
[1755979733655,123.55212535,203.85,203.84,4.36729071]
[1755979733854,123.55212535,203.85,203.84,4.36739935]
[1755979739666,128.45912535,203.85,203.84,4.36791802]
[1755979742070,128.45912535,203.85,203.79,2.66]
[1755979742266,128.45912535,203.85,203.81,2.66]
[1755979742472,128.45912535,203.85,203.82,4.36796756]
[1755979742674,128.45912535,203.85,203.83,4.36796756]
[1755979742874,128.45912535,203.85,203.84,4.36796756]
[1755979743878,123.427,203.85,203.84,4.36796756]
[1755979744276,5.03212535,203.89,203.84,4.36796756]
[1755979744472,118.46,203.88,203.87,2.81]
[1755979744676,118.46,203.88,203.87,7.17796756]
[1755979745177,4.9053,203.92,203.87,7.17796756]
[1755979745377,118.48,203.91,203.89,2.81]
[1755979745574,5.03212535,203.95,203.91,2.81]
[1755979745774,118.52,203.94,203.92,7.17796756]
[1755979745973,5.03212535,203.95,203.93,4.36796756]
[1755979746173,118.52,203.94,203.88,2.81]
[1755979746373,118.52,203.94,203.89,4.71387791]
[1755979746574,118.52,203.94,203.9,7.52387791]
[1755979746876,118.52,203.94,203.91,4.71387791]
[1755979747076,118.52,203.94,203.92,4.71387791]
[1755979747278,118.52,203.94,203.93,4.71387791]
[1755979747773,5.03212535,203.94,203.84,2.81]
[1755979748078,5.03212535,203.89,203.84,2.81]
[1755979748270,118.64,203.88,203.84,2.81]
[1755979749573,118.64,203.88,203.85,2.81]
[1755979752079,5.03212535,203.87,203.81,2.81]
[1755979752474,5.03212535,203.87,203.8,2.81]
[1755979752675,5.03212535,203.87,203.81,4.05484899]
[1755979752979,5.03212535,203.87,203.8,2.81]
[1755979753184,5.03212535,203.87,203.81,4.0548511]
[1755979753383,5.03212535,203.87,203.8,2.81]
[1755979753580,4.9068,203.86,203.81,4.05483233]
[1755979753781,4.9068,203.86,203.82,2.81]
[1755979754677,5.03212535,203.87,203.8,2.81]
[1755979754885,5.03212535,203.87,203.82,2.81]
[1755979755083,118.68,203.86,203.8,2.81]
[1755979755388,123.71212535,203.87,203.82,2.81]
[1755979755585,123.71212535,203.87,203.84,2.81]
[1755979756281,123.71212535,203.87,203.81,2.81]
[1755979759783,123.71212535,203.87,203.82,4.48241127]
[1755979759983,123.71212535,203.87,203.83,4.48241127]
[1755979760180,123.71212535,203.87,203.84,4.48241127]
[1755979760381,123.71212535,203.87,203.85,4.48241127]
[1755979760583,123.71212535,203.87,203.86,4.48241127]
[1755979761086,123.71212535,203.87,203.81,2.81]
[1755979761280,123.71212535,203.87,203.82,7.2926641]
[1755979761481,123.71212535,203.87,203.83,4.4826641]
[1755979761679,123.71212535,203.87,203.84,4.4825504]
[1755979761885,123.71212535,203.87,203.85,4.4825504]
[1755979762086,123.71212535,203.87,203.82,2.81]
[1755979762287,123.71212535,203.87,203.83,4.48260391]
[1755979762489,123.71212535,203.87,203.84,4.48260391]
[1755979762686,123.71212535,203.87,203.85,4.48260391]
[1755979762881,123.71212535,203.87,203.86,4.48260391]
[1755979764985,123.69212535,203.87,203.86,4.48260391]
[1755979768192,123.69212535,203.87,203.81,4.9076]
[1755979768487,123.69212535,203.87,203.82,8.5380129]
[1755979768694,123.69212535,203.87,203.83,4.4827359]
[1755979768890,123.69212535,203.87,203.84,4.4827359]
[1755979769092,123.69212535,203.87,203.85,4.4827359]
[1755979769291,123.69212535,203.87,203.86,4.4827359]
[1755979770200,5.03212535,203.87,203.86,4.4827359]
[1755979770495,123.65212535,203.87,203.86,4.4827359]
[1755979771596,123.65212535,203.87,203.86,4.48282832]
[1755979775997,123.63212535,203.87,203.86,4.48282832]
[1755979776902,123.61212535,203.87,203.86,4.48282832]
[1755979779104,118.58,203.87,203.86,4.48282832]
[1755979779300,123.61212535,203.87,203.86,4.48282832]
[1755979779799,118.58,203.87,203.86,4.48282832]
[1755979780100,123.61212535,203.87,203.86,4.48282832]
[1755979780494,5.03212535,203.87,203.86,4.48282832]
[1755979780701,123.59212535,203.87,203.86,4.48282832]
[1755979781200,118.56,203.87,203.86,4.48282832]
[1755979781401,123.59212535,203.87,203.86,4.50139805]
[1755979784604,123.59212535,203.87,203.86,4.50165376]
[1755979788209,5.03212535,203.87,203.86,4.50165376]
[1755979788406,123.57212535,203.87,203.86,4.50165376]
[1755979790608,5.03212535,203.87,203.86,4.50165376]
[1755979790808,123.53212535,203.87,203.86,4.50165376]
[1755979791102,5.03212535,203.87,203.86,4.50235429]
[1755979791306,123.53212535,203.87,203.86,4.50235429]
[1755979791902,5.03212535,203.87,203.86,4.50235429]
[1755979792105,123.53212535,203.87,203.86,4.50235429]
[1755979800013,123.53212535,203.87,203.86,4.50858208]
[1755979800209,4.9062,203.88,203.86,4.50858208]
[1755979800516,5.03212535,203.9,203.88,2.7]
[1755979800717,5.03212535,203.9,203.89,4.50858208]
[1755979800915,5.03212535,203.9,203.88,2.7]
[1755979801212,5.03212535,203.9,203.89,4.50793326]
[1755979801410,123.51212535,203.9,203.89,4.50793326]
[1755979801810,5.03212535,203.9,203.89,4.50793326]
[1755979802010,123.51212535,203.9,203.89,4.50793326]
[1755979803311,128.41792535,203.9,203.89,4.50600755]
[1755979804914,5.03212535,203.95,203.89,7.19600755]
[1755979805112,118.48,203.94,203.9,4.50600755]
[1755979805315,118.48,203.94,203.92,2.69]
[1755979805512,5.03212535,203.95,203.93,4.50600755]
[1755979805718,5.03212535,203.95,203.94,4.50600755]
[1755979805918,123.69212535,203.95,203.94,4.50600755]
[1755979807122,123.69212535,203.95,203.92,2.69]
[1755979807421,123.69212535,203.95,203.93,4.49826016]
[1755979807615,123.69212535,203.95,203.82,2.69]
[1755979807919,5.03212535,203.93,203.84,2.69]
[1755979808115,118.72,203.92,203.85,4.4975004]
[1755979808315,118.72,203.92,203.86,4.4975004]
[1755979808520,118.72,203.92,203.87,4.4975004]
[1755979808721,118.72,203.92,203.88,4.4975004]
[1755979808911,4.9054,203.91,203.89,4.4975004]
[1755979809115,4.9054,203.91,203.9,4.4975004]
[1755979809819,4.9054,203.91,203.82,9.93942535]
[1755979809820,5.03212535,203.91,203.83,2.69]
[1755979810020,118.72,203.92,203.83,2.69]
[1755979810021,5.03212535,203.89,203.83,2.69]
[1755979810219,118.7,203.88,203.83,2.69]
[1755979810612,24.524,203.94,203.82,5.03212535]
[1755979810819,123.81212535,203.92,203.83,6.73701722]
[1755979811119,123.81212535,203.92,203.84,2.69]
[1755979811319,123.81212535,203.92,203.82,5.03212535]
[1755979811320,4.906,203.89,203.82,5.03212535]
[1755979811523,4.906,203.89,203.84,2.69]
[1755979812221,4.906,203.89,203.82,5.03212535]
[1755979812419,4.906,203.89,203.83,6.73687469]
[1755979812620,4.906,203.89,203.83,2.69]
[1755979819025,4.906,203.89,203.84,4.04672632]
[1755979819227,4.906,203.89,203.81,4.9076]
[1755979819430,4.906,203.89,203.86,2.69]
[1755979820431,4.906,203.89,203.81,4.9076]
[1755979820730,4.9063,203.88,203.84,2.69]
[1755979820933,4.9063,203.88,203.86,2.69]
[1755979821830,4.9063,203.88,203.87,4.40356181]
[1755979822631,4.9063,203.88,203.83,2.69]
[1755979822833,4.9063,203.88,203.85,2.69]
[1755979823130,4.9063,203.88,203.86,4.40360545]
[1755979823331,4.9063,203.88,203.87,4.40360545]
[1755979829229,4.9063,203.88,203.87,4.40466161]
[1755979830335,4.9057,203.9,203.88,2.69]
[1755979830535,4.9057,203.9,203.89,7.09466161]
[1755979832231,372.06801659,203.99,203.9,2.69]
[1755979832232,329.86,203.99,203.9,2.69]
[1755979832437,329.86,203.99,203.92,2.69]
[1755979832631,118.74,204.0,203.93,4.40466161]
[1755979832937,24.5141,204.02,203.94,7.09466161]
[1755979833140,118.8,204.01,203.95,4.40466161]
[1755979833331,118.8,204.01,203.91,2.69]
[1755979833530,4.9041,203.97,203.92,4.40166647]
[1755979833730,4.9041,203.97,203.93,7.08166647]
[1755979833931,4.9041,203.97,203.94,4.40166647]
[1755979834135,4.9041,203.97,203.95,4.40166647]
[1755979834331,4.9041,203.97,203.93,2.68]
[1755979834531,4.9041,203.97,203.94,4.40064202]
[1755979834834,4.9041,203.97,203.93,2.68]
[1755979835034,4.9041,203.97,203.94,4.40064202]
[1755979835235,4.9041,203.97,203.93,2.68]
[1755979835430,4.9041,203.97,203.94,4.39979765]
[1755979835636,4.9041,203.97,203.93,2.68]
[1755979835836,4.9041,203.97,203.94,4.39979765]
[1755979836034,4.9041,203.97,203.95,4.39966544]
[1755979836234,4.9041,203.97,203.94,2.68]
[1755979838231,4.9041,203.97,203.95,4.39731258]
[1755979838435,4.9041,203.97,203.94,2.68]
[1755979838633,4.9041,203.97,203.95,4.39731258]
[1755979838939,4.9041,203.97,203.94,2.68]
[1755979848346,4.9041,203.97,203.89,9.94595412]
[1755979848644,4.9041,203.97,203.95,2.68]
[1755979849343,4.9041,203.97,203.93,2.68]
[1755979849546,4.9041,203.97,203.94,2.68]
[1755979849942,118.74,204.01,203.92,2.68]
[1755979850145,5.04025412,204.01,203.94,2.68]
[1755979850447,5.04025412,204.02,203.94,2.68]
[1755979850643,9.94315412,204.02,203.94,2.68]
[1755979851045,5.04025412,204.02,203.94,2.68]
[1755979851640,5.04025412,204.0,203.94,2.68]
[1755979852548,4.9036,203.99,203.95,2.68]
[1755979858954,4.9036,203.99,203.96,2.68]
[1755979875178,4.9036,203.99,203.97,4.40290062]
[1755979875381,4.9036,203.99,203.96,2.68]
[1755979875573,4.9036,203.99,203.97,4.40298231]
[1755979875769,4.9036,203.99,203.96,2.68]
[1755979875975,4.9036,203.99,203.97,4.40298231]
[1755979876178,4.9036,203.99,203.96,2.68]
[1755979876383,4.9036,203.99,203.97,4.40516023]
[1755979876677,4.9036,203.99,203.96,2.68]
[1755979876873,4.9036,203.99,203.97,4.40521993]
[1755979877077,4.9036,203.99,203.96,2.68]
[1755979877281,4.9036,203.99,203.97,4.40547664]
[1755979877477,4.9036,203.99,203.96,2.68]
[1755979877777,4.9036,203.99,203.97,4.40553526]
[1755979877971,4.9036,203.99,203.96,2.68]
[1755979878168,4.9036,203.99,203.97,4.40553526]
[1755979878373,4.9036,203.99,203.96,2.68]
[1755979878572,4.9036,203.99,203.97,4.40564279]
[1755979878770,4.9036,203.99,203.96,2.68]
[1755979878971,4.9036,203.99,203.97,4.40564279]
[1755979879176,4.9036,203.99,203.96,2.68]
[1755979879379,4.9036,203.99,203.97,4.40570196]
[1755979879578,4.9036,203.99,203.96,2.68]
[1755979879781,4.9036,203.99,203.97,4.40576112]
[1755979879977,4.9036,203.99,203.96,2.68]
[1755979880181,4.9036,203.99,203.97,4.40576112]
[1755979880482,4.9036,203.99,203.96,2.68]
[1755979880680,4.9036,203.99,203.97,4.40589094]
[1755979880884,4.9036,203.99,203.96,2.68]
[1755979881081,4.9036,203.99,203.97,4.40589094]
[1755979881282,4.9036,203.99,203.96,2.68]
[1755979881480,4.9036,203.99,203.97,4.40588669]
[1755979881778,4.9036,203.99,203.96,2.68]
[1755979881979,4.9036,203.99,203.97,4.40594593]
[1755979882179,4.9036,203.99,203.96,2.68]
[1755979882378,4.9036,203.99,203.97,4.40595633]
[1755979882577,4.9036,203.99,203.96,2.68]
[1755979882777,4.9036,203.99,203.97,4.4060156]
[1755979882979,4.9036,203.99,203.96,2.68]
[1755979883180,4.9036,203.99,203.97,4.4060156]
[1755979883375,4.9036,203.99,203.96,2.68]
[1755979883580,4.9036,203.99,203.97,4.4060912]
[1755979883780,4.9036,203.99,203.96,2.68]
[1755979883978,4.9036,203.99,203.97,4.4060912]
[1755979884282,4.9036,203.99,203.96,2.68]
[1755979884477,4.9036,203.99,203.97,4.40611121]
[1755979884679,4.9036,203.99,203.96,2.68]
[1755979889086,4.9036,203.99,203.92,2.6]
[1755979889283,4.9036,203.99,203.94,2.6]
[1755979889485,4.9036,203.99,203.96,2.6]
[1755979889688,4.9036,203.99,203.97,4.40683758]
[1755979889888,4.9036,203.99,203.98,4.40683758]
[1755979892580,4.9052,203.92,203.91,82.57736145]
[1755979892784,4.9052,203.92,203.87,2.6]
[1755979892982,4.9052,203.92,203.89,2.6]
[1755979893590,4.9052,203.92,203.86,2.62]
[1755979893888,4.9052,203.92,203.87,4.09864182]
[1755979894084,4.9052,203.92,203.9,2.62]
[1755979894390,4.9052,203.92,203.86,2.62]
[1755979894687,4.9052,203.92,203.89,2.62]
[1755979894887,4.9052,203.92,203.85,94.26321033]
[1755979895084,4.9052,203.92,203.86,4.09722719]
[1755979895389,4.9052,203.92,203.89,2.62]
[1755979895588,4.9052,203.92,203.86,2.62]
[1755979895778,4.9052,203.92,203.88,2.62]
[1755979895982,4.9052,203.92,203.89,2.62]
[1755979896289,4.9052,203.92,203.9,2.62]
[1755979898382,4.9052,203.92,203.85,99.16991033]
[1755979898383,4.9056,203.91,203.86,2.62]
[1755979898589,5.04025412,203.91,203.85,96.88321033]
[1755979899093,5.04025412,203.91,203.86,4.09419989]
[1755979899288,4.906,203.89,203.86,2.62]
[1755979901192,9.94625412,203.89,203.86,2.62]
[1755979901395,9.94625412,203.89,203.87,2.62]
[1755979904298,9.94625412,203.89,203.85,94.26321033]
[1755979904501,9.94625412,203.89,203.85,96.88321033]
[1755979904800,9.94625412,203.89,203.86,4.39958559]
[1755979904994,9.94625412,203.89,203.87,4.39958559]
[1755979905297,9.94625412,203.89,203.86,2.62]
[1755979907604,9.94625412,203.89,203.85,94.26321033]
[1755979907896,4.9063,203.88,203.86,4.3964613]
[1755979908101,4.9063,203.88,203.85,94.26321033]
[1755979908502,4.9063,203.88,203.85,96.88321033]
[1755979910705,9.94655412,203.88,203.85,96.88321033]
[1755979910903,9.94655412,203.88,203.86,2.62]
[1755979913910,4.9053,203.92,203.86,2.62]
[1755979914106,5.04025412,203.91,203.85,94.26321033]
[1755979914403,5.04025412,203.91,203.88,2.62]
[1755979914609,5.04025412,203.91,203.85,96.88321033]
[1755979914799,5.04025412,203.89,203.86,2.62]
[1755979916509,5.04025412,203.89,203.85,94.26321033]
[1755979916706,5.04025412,203.89,203.87,2.62]
[1755979916906,5.04025412,203.89,203.82,2.62]
[1755979917111,5.04025412,203.86,203.82,2.62]
[1755979917713,5.04025412,203.86,203.8,2.62]
[1755979917913,5.04025412,203.86,203.82,2.62]
[1755979918111,5.04025412,203.86,203.83,2.62]
[1755979918509,9.94705412,203.86,203.83,2.62]
[1755979919303,9.94705412,203.86,203.79,210.74789695]
[1755979919506,9.94705412,203.86,203.83,2.62]
[1755979924402,9.94705412,203.86,203.79,215.65599695]
[1755979924608,9.94705412,203.86,203.84,2.6]
[1755979924808,9.94705412,203.86,203.79,215.65599695]
[1755979925114,9.94705412,203.86,203.85,2.6]
[1755979926112,9.94705412,203.86,203.83,2.6]
[1755979926714,9.94705412,203.86,203.84,2.6]
[1755979929115,9.94705412,203.86,203.81,2.6]
[1755979929504,9.94705412,203.86,203.8,4.9079]
[1755979929710,9.94705412,203.86,203.82,2.6]
[1755979930014,9.94705412,203.86,203.83,2.6]
[1755979931412,9.94705412,203.86,203.81,7.5077]
[1755979931620,9.94705412,203.86,203.79,210.74789695]
[1755979931621,5.04025412,203.88,203.83,2.6]
[1755979931819,5.04025412,203.9,203.84,7.01227331]
[1755979932012,5.04025412,203.9,203.84,2.6]
[1755979932518,9.94595412,203.9,203.84,2.6]
[1755979933522,4.906,203.89,203.82,2.6]
[1755979933717,5.04025412,203.9,203.83,4.41426985]
[1755979933912,5.04025412,203.9,203.84,4.41426985]
[1755979934115,5.04025412,203.9,203.82,2.6]
[1755979934411,5.04025412,203.9,203.83,4.41429907]
[1755979934617,9.94655412,203.88,203.84,2.6]
[1755979939624,9.94655412,203.88,203.85,4.42424152]
[1755979939821,9.94655412,203.88,203.84,2.6]
[1755979940119,9.94655412,203.88,203.85,2.6]
[1755979941524,4.9065,203.87,203.85,2.6]
[1755979944725,4.9065,203.87,203.86,4.42962818]
[1755979945421,5.04025412,203.9,203.87,2.6]
[1755979945623,5.04025412,203.9,203.88,4.43002634]
[1755979945822,5.04025412,203.9,203.87,2.6]
[1755979946023,5.04025412,203.9,203.88,4.4297641]
[1755979946225,5.04025412,203.9,203.87,2.6]
[1755979946425,5.04025412,203.9,203.88,4.43005513]
[1755979946626,9.94605412,203.9,203.83,4.9072]
[1755979946821,5.04025412,203.9,203.84,7.02998957]
[1755979947017,5.04025412,203.88,203.85,4.42998957]
[1755979947217,5.04025412,203.88,203.86,4.42998957]
[1755979947426,9.94635412,203.88,203.87,4.42998957]
[1755979947618,5.04025412,203.88,203.87,4.43066236]
[1755979948023,5.04025412,203.88,203.85,2.6]
[1755979948024,4.9065,203.87,203.85,2.6]
[1755979948327,4.9065,203.87,203.86,4.43085909]
[1755979950420,4.9068,203.86,203.79,92.24789695]
[1755979950730,4.9068,203.86,203.82,2.6]
[1755979951034,4.907,203.85,203.83,4.4322872]
[1755979951233,4.907,203.85,203.84,4.4322872]
[1755979953434,4.9073,203.84,203.8,2.6]
[1755979953633,9.94755412,203.84,203.81,4.43164072]
[1755979953835,9.94755412,203.84,203.82,4.43164072]
[1755979954035,9.94755412,203.84,203.83,4.43164072]
[1755979954332,9.94755412,203.84,203.79,92.24789695]
[1755979954537,9.94755412,203.84,203.81,2.71]
[1755979954730,9.94755412,203.84,203.82,4.4316016]
[1755979954931,9.94755412,203.84,203.83,4.4316016]
[1755979959240,9.94755412,203.84,203.81,2.71]
[1755979959442,9.94755412,203.84,203.82,4.42954826]
[1755979959640,9.94755412,203.84,203.81,2.71]
[1755979959840,9.94755412,203.84,203.82,4.42994039]
[1755979960042,9.94755412,203.84,203.81,2.71]
[1755979960244,9.94755412,203.84,203.82,4.42994039]
[1755979960440,9.94755412,203.84,203.81,2.71]
[1755979960644,9.94755412,203.84,203.82,4.42954486]
[1755979960946,9.94755412,203.84,203.81,2.71]
[1755979961142,9.94755412,203.84,203.82,4.43039417]
[1755979961345,9.94755412,203.84,203.81,2.71]
[1755979961543,9.94755412,203.84,203.82,4.43025999]
[1755979961738,9.94755412,203.84,203.81,2.71]
[1755979961940,9.94755412,203.84,203.82,4.43035495]
[1755979962144,9.94755412,203.84,203.81,2.71]
[1755979962347,9.94755412,203.84,203.82,4.43035495]
[1755979962647,9.94755412,203.84,203.81,2.71]
[1755979962943,9.94755412,203.84,203.82,4.43006791]
[1755979963137,9.94755412,203.84,203.81,2.71]
[1755979963337,9.94755412,203.84,203.82,4.43006791]
[1755979963537,9.94755412,203.84,203.81,2.71]
[1755979963743,9.94755412,203.84,203.82,4.4298713]
[1755979963944,9.94755412,203.84,203.81,2.71]
[1755979964646,9.94755412,203.84,203.82,4.429214]
[1755979964948,9.94755412,203.84,203.8,2.71]
[1755979965139,9.94755412,203.84,203.81,4.429214]
[1755979965338,9.94755412,203.84,203.82,4.429214]
[1755979965539,9.94755412,203.84,203.8,2.71]
[1755979965846,9.94755412,203.84,203.81,7.13893364]
[1755979966046,9.94755412,203.84,203.82,4.42893364]
[1755979966247,9.94755412,203.84,203.81,2.71]
[1755979966450,9.94755412,203.84,203.82,4.42868867]
[1755979966643,9.94755412,203.84,203.81,2.71]
[1755979967948,5.04025412,203.82,203.76,2.71]
[1755979968247,5.04025412,203.82,203.78,2.71]
[1755979968442,5.04025412,203.82,203.79,4.42847187]
[1755979968643,4.908,203.81,203.8,4.42847187]
[1755979968941,5.04025412,203.82,203.8,7.13847187]
[1755979969139,5.04025412,203.82,203.81,4.42847187]
[1755979971249,5.04025412,203.82,203.8,2.71]
[1755979973351,5.04025412,203.82,203.75,4.9091]
[1755979973552,5.04025412,203.82,203.76,4.42595212]
[1755979973754,5.04025412,203.82,203.8,2.71]
[1755979976057,5.04025412,203.82,203.75,4.9091]
[1755979976257,5.04025412,203.82,203.77,2.71]
[1755979976458,5.04025412,203.82,203.78,4.42520424]
[1755979976659,5.04025412,203.82,203.79,7.13520424]
[1755979976959,5.04025412,203.82,203.8,4.42520424]
[1755979977155,5.04025412,203.82,203.79,2.71]
[1755979977358,5.04025412,203.82,203.8,4.42491725]
[1755979977657,5.04025412,203.82,203.8,2.71]
[1755979994469,5.04025412,203.82,203.81,4.44346455]
[1755979995268,9.94795412,203.82,203.73,93.98945636]
[1755979995467,5.04025412,203.79,203.74,8.51787528]
[1755979995664,5.04025412,203.79,203.75,11.27787528]
[1755979995868,5.04025412,203.79,203.76,4.44453832]
[1755979996168,5.04025412,203.79,203.77,4.44453832]
[1755979996370,5.04025412,203.79,203.78,4.44453832]
[1755980002877,5.04025412,203.79,203.78,4.44239148]
[1755980004384,4.9087,203.78,203.68,2.76]
[1755980004675,24.5376,203.83,203.7,2.76]
[1755980004676,5.04025412,203.76,203.7,2.76]
[1755980004875,5.04025412,203.76,203.71,8.51332099]
[1755980005070,5.04025412,203.76,203.73,2.76]
[1755980005277,5.04025412,203.76,203.74,7.20220728]
[1755980005475,5.04025412,203.76,203.75,4.44220728]
[1755980006176,4.9089,203.77,203.75,4.44220728]
[1755980006481,9.94945412,203.76,203.65,2.76]
[1755980006677,5.04025412,203.76,203.67,2.76]
[1755980006874,5.04025412,203.71,203.68,8.50950734]
[1755980007080,5.04025412,203.71,203.7,2.76]
[1755980007280,5.04025412,203.71,203.7,7.19994771]
[1755980007775,5.04025412,203.71,203.7,4.771e-05]
[1755980007984,24.5466,203.75,203.65,2.76]
[1755980008280,5.04025412,203.69,203.65,2.76]
[1755980008672,5.04025412,203.69,203.66,2.76]
[1755980008876,5.04025412,203.69,203.59,2.76]
[1755980009071,5.04025412,203.69,203.6,4.06492208]
[1755980009276,5.04025412,203.69,203.62,2.76]
[1755980009977,5.04025412,203.69,203.63,2.76]
[1755980010875,5.04025412,203.67,203.64,2.76]
[1755980011675,5.04025412,203.67,203.61,2.76]
[1755980012782,5.04025412,203.67,203.63,2.76]
[1755980012985,4.9102,203.72,203.62,2.76]
[1755980013176,5.04025412,203.69,203.62,2.76]
[1755980013383,5.04025412,203.67,203.61,2.76]
[1755980014585,5.04025412,203.65,203.61,2.76]
[1755980014878,5.04025412,203.65,203.62,2.61]
[1755980015182,5.04025412,203.65,203.63,2.61]
[1755980015377,4.911,203.68,203.6,4.9126]
[1755980015576,5.04025412,203.67,203.61,2.61]
[1755980016182,5.04025412,203.66,203.61,2.61]
[1755980016380,5.04025412,203.66,203.6,4.9126]
[1755980016578,5.04025412,203.66,203.64,2.61]
[1755980020990,5.04025412,203.66,203.61,2.61]
[1755980021186,143.7293,203.73,203.6,2.61]
[1755980021381,5.04025412,203.65,203.57,2.61]
[1755980022488,5.04025412,203.65,203.58,4.9131]
[1755980022680,5.04025412,203.65,203.59,2.61]
[1755980034098,24.5563,203.67,203.55,2.61]
[1755980034292,5.04025412,203.62,203.55,2.61]
[1755980034899,5.04025412,203.62,203.56,4.9137]
[1755980035091,4.9124,203.63,203.57,2.61]
[1755980035505,5.04025412,203.64,203.57,2.61]
[1755980036494,5.04025412,203.64,203.57,7.5234]
[1755980037000,9.95235412,203.64,203.57,7.5234]
[1755980037194,5.04025412,203.62,203.57,2.61]
[1755980037496,5.04025412,203.62,203.56,2.61]
[1755980042203,5.04025412,203.62,203.56,7.5237]
[1755980043097,5.04025412,203.62,203.56,4.9137]
[1755980043299,4.9117,203.65,203.59,2.61]
[1755980043505,5.04025412,203.64,203.6,2.79]
[1755980045306,9.95235412,203.64,203.6,2.79]
[1755980047005,9.95235412,203.64,203.58,4.9132]
[1755980048204,14.73,203.68,203.49,5.4990969]
[1755980048402,5.04025412,203.59,203.53,6.85400183]
[1755980048705,5.04025412,203.59,203.55,2.79]
[1755980049202,5.04025412,203.59,203.52,2.79]
[1755980049406,5.04025412,203.59,203.53,4.06631557]
[1755980049704,5.04025412,203.59,203.52,2.79]
[1755980049705,4.9135,203.58,203.52,2.79]
[1755980049901,4.9135,203.58,203.54,2.79]
[1755980056111,9.95405412,203.57,203.48,7.83025412]
[1755980056309,9.95405412,203.57,203.49,4.06777134]
[1755980056503,9.95405412,203.57,203.51,2.79]
[1755980056703,9.95405412,203.57,203.53,2.79]
[1755980056907,9.95405412,203.57,203.54,2.79]
[1755980057103,5.04025412,203.57,203.54,2.79]
[1755980057406,5.04025412,203.59,203.56,2.79]
[1755980060308,5.04025412,203.62,203.55,2.79]
[1755980061610,5.04025412,203.62,203.55,7.7039]
[1755980062714,9.95285412,203.62,203.55,2.79]
[1755980063017,5.04025412,203.6,203.55,2.79]
[1755980063313,5.04025412,203.6,203.52,4.9146]
[1755980063509,5.04025412,203.6,203.56,2.79]
[1755980064309,9.95305412,203.61,203.56,2.79]
[1755980070313,9.95305412,203.61,203.55,2.79]
[1755980070518,5.04025412,203.61,203.55,2.79]
[1755980071112,5.04025412,203.61,203.56,2.79]
[1755980071512,5.04025412,203.61,203.57,2.79]
[1755980071812,5.04025412,203.61,203.58,2.79]
[1755980082321,5.04025412,203.61,203.59,4.34535044]
[1755980082621,5.04025412,203.61,203.58,2.79]
[1755980082823,5.04025412,203.61,203.59,4.34535044]
[1755980083015,5.04025412,203.61,203.58,2.79]
[1755980083213,5.04025412,203.61,203.59,4.34535044]